fUSD/lending_fUSD_20260430
["ID","MTS","AMOUNT","RATE_DAILY","PERIOD"]
[421385557,1777549841000,-151.0,0.00024658,2]
[421385567,1777549841000,-624.87969989,0.00025037,2]
[421385559,1777549841000,-328.86,0.00024658,2]
[421385542,1777549841000,-447.88158663,0.00023314,2]
[421385551,1777549841000,-151.0,0.00024658,2]
[421385537,1777549841000,-156.94,0.00022466,2]
[421385517,1777549841000,-1327.79111958,0.0002,30]
[421385540,1777549841000,-1661.69893636,0.000226,2]
[421385565,1777549841000,-151.0,0.00025013,2]
[421385512,1777549841000,-1050.73,0.00018856,2]
[421385514,1777549841000,-186.0,0.00019148,2]
[421385511,1777549841000,-2500.0,0.0001863,2]
[421385515,1777549841000,-1000.0,0.00019178,2]
[421385513,1777549841000,-447.88158663,0.00019043,2]
[421385520,1777549841000,-186.0,0.00020148,2]
[421385516,1777549841000,-2500.0,0.00019178,2]
[421385518,1777549841000,-5035.32,0.0002,2]
[421385519,1777549841000,-193.155,0.0002,2]
[421385521,1777549841000,-162.3498137,0.00020195,2]
[421385531,1777549841000,-748.28172148,0.00022,2]
[421385536,1777549841000,-264.76,0.00022466,2]
[421385532,1777549841000,-2019.1249209,0.00022,2]
[421385527,1777549841000,-5000.0,0.00021918,2]
[421385526,1777549841000,-5418.0,0.000217,5]
[421385525,1777549841000,-186.0,0.00021148,2]
[421385524,1777549841000,-160.563136,0.0002112,2]
[421385522,1777549841000,-262.88,0.00020306,2]
[421385529,1777549841000,-272.9034792,0.00021918,10]
[421385530,1777549841000,-457.52390471,0.00021918,10]
[421385528,1777549841000,-227.419566,0.00021918,10]
[421385534,1777549841000,-192.0,0.00022148,2]
[421385535,1777549841000,-3669.60898215,0.0002222,48]
[421385533,1777549841000,-160.0,0.00022,2]
[421385539,1777549841000,-905.8,0.00022562,2]
[421385523,1777549841000,-8338.67,0.00020306,2]
[421385566,1777549841000,-151.0,0.00025013,2]
[421385602,1777549841000,-151.0,0.00025864,2]
[421385570,1777549841000,-160.08527114,0.00025102,21]
[421385599,1777549841000,-151.0,0.00025864,2]
[421385598,1777549841000,-151.0,0.00025864,2]
[421385597,1777549841000,-151.0,0.00025864,2]
[421385606,1777549841000,-151.67,0.00025865,2]
[421385605,1777549841000,-151.82,0.00025864,2]
[421385609,1777549841000,-153.62,0.00025865,2]
[421385610,1777549841000,-151.0,0.00025865,2]
[421385607,1777549841000,-151.79,0.00025865,2]
[421385608,1777549841000,-151.6,0.00025865,2]
[421385613,1777549841000,-151.0,0.00025865,2]
[421385611,1777549841000,-273.96,0.00025865,2]
[421385614,1777549841000,-151.0,0.00025865,2]
[421385596,1777549841000,-151.0,0.00025864,2]
[421385615,1777549841000,-151.0,0.00025865,2]
[421385617,1777549841000,-151.0,0.00025865,2]
[421385627,1777549841000,-151.0,0.00025865,2]
[421385628,1777549841000,-151.0,0.00025865,2]
[421385620,1777549841000,-151.37,0.00025865,2]
[421385619,1777549841000,-151.0,0.00025865,2]
[421385616,1777549841000,-151.0,0.00025865,2]
[421385621,1777549841000,-151.73,0.00025865,2]
[421385623,1777549841000,-151.0,0.00025865,2]
[421385618,1777549841000,-151.0,0.00025865,2]
[421385622,1777549841000,-151.0,0.00025865,2]
[421385625,1777549841000,-151.0,0.00025865,2]
[421385624,1777549841000,-151.0,0.00025865,2]
[421385612,1777549841000,-151.0,0.00025865,2]
[421385601,1777549841000,-151.0,0.00025864,2]
[421385563,1777549841000,-328.86,0.00024946,7]
[421385600,1777549841000,-151.0,0.00025864,2]
[421385572,1777549841000,-624.87969989,0.00025182,7]
[421385573,1777549841000,-328.86,0.00025234,30]
[421385574,1777549841000,-624.87969989,0.00025254,7]
[421385575,1777549841000,-624.87969989,0.00025326,7]
[421385571,1777549841000,-624.87969989,0.00025109,7]
[421385577,1777549841000,-400.89,0.000254,10]
[421385576,1777549841000,-624.87969989,0.00025398,7]
[421385603,1777549841000,-151.0,0.00025864,2]
[421385579,1777549841000,-328.86,0.00025523,2]
[421385578,1777549841000,-624.87969989,0.00025471,7]
[421385592,1777549841000,-151.0,0.00025864,2]
[421385582,1777549841000,-624.87969989,0.00025615,14]
[421385593,1777549841000,-151.0,0.00025864,2]
[421385580,1777549841000,-624.87969989,0.00025543,14]
[421385583,1777549841000,-624.87969989,0.00025687,14]
[421385581,1777549841000,-164.92199818,0.00025578,2]
[421385604,1777549841000,-151.0,0.00025864,2]
[421385594,1777549841000,-151.0,0.00025864,2]
[421385595,1777549841000,-151.0,0.00025864,2]
[421385591,1777549841000,-151.0,0.00025864,2]
[421385585,1777549841000,-328.86,0.00025811,7]
[421385626,1777549841000,-151.0,0.00025865,2]
[421385588,1777549841000,-151.0,0.00025864,2]
[421385589,1777549841000,-151.0,0.00025864,2]
[421385590,1777549841000,-151.0,0.00025864,2]
[421385584,1777549841000,-624.87969989,0.0002576,14]
[421385587,1777549841000,-151.0,0.00025835,2]
[421385586,1777549841000,-624.87969989,0.00025832,14]
[421385672,1777549842000,-151.0,0.00025868,2]
[421385670,1777549842000,-151.0,0.00025868,2]
[421385669,1777549842000,-151.0,0.00025868,2]
[421385667,1777549842000,-151.0,0.00025868,2]
[421385666,1777549842000,-151.0,0.00025868,2]
[421385658,1777549842000,-151.0,0.00025868,2]
[421385661,1777549842000,-151.0,0.00025868,2]
[421385657,1777549842000,-151.0,0.00025868,2]
[421385656,1777549842000,-232.25,0.00025868,2]
[421385659,1777549842000,-151.0,0.00025868,2]
[421385660,1777549842000,-151.0,0.00025868,2]
[421385675,1777549842000,-624.87969989,0.00025977,30]
[421385686,1777549842000,-160.563136,0.00026429,2]
[421385676,1777549842000,-624.87969989,0.00026049,30]
[421385671,1777549842000,-151.0,0.00025868,2]
[421385673,1777549842000,-380.52932165,0.0002589,5]
[421385677,1777549842000,-328.86,0.00026099,30]
[421385674,1777549842000,-624.87969989,0.00025904,14]
[421385678,1777549842000,-624.87969989,0.00026121,30]
[421385680,1777549842000,-624.87969989,0.00026266,30]
[421385679,1777549842000,-624.87969989,0.00026193,30]
[421385689,1777549842000,-624.87969989,0.00026627,60]
[421385682,1777549842000,-386.2634704,0.0002628,2]
[421385681,1777549842000,-925.9762747,0.0002628,2]
[421385683,1777549842000,-624.87969989,0.00026338,30]
[421385653,1777549842000,-151.0,0.00025868,2]
[421385668,1777549842000,-152.41,0.00025868,2]
[421385655,1777549842000,-151.0,0.00025868,2]
[421385648,1777549842000,-151.0,0.00025868,2]
[421385654,1777549842000,-151.0,0.00025868,2]
[421385685,1777549842000,-624.87969989,0.0002641,60]
[421385630,1777549842000,-151.0,0.00025865,2]
[421385629,1777549842000,-151.0,0.00025865,2]
[421385631,1777549842000,-151.0,0.00025865,2]
[421385632,1777549842000,-151.0,0.00025865,2]
[421385633,1777549842000,-151.0,0.00025865,2]
[421385637,1777549842000,-151.0,0.00025865,2]
[421385635,1777549842000,-154.19,0.00025865,2]
[421385638,1777549842000,-151.0,0.00025865,2]
[421385639,1777549842000,-151.0,0.00025865,2]
[421385634,1777549842000,-151.0,0.00025865,2]
[421385652,1777549842000,-153.05,0.00025868,2]
[421385665,1777549842000,-277.82,0.00025868,2]
[421385644,1777549842000,-151.0,0.00025865,2]
[421385647,1777549842000,-151.0,0.00025868,2]
[421385642,1777549842000,-151.0,0.00025865,2]
[421385640,1777549842000,-151.0,0.00025865,2]
[421385649,1777549842000,-153.06,0.00025868,2]
[421385641,1777549842000,-151.0,0.00025865,2]
[421385646,1777549842000,-151.0,0.00025868,2]
[421385651,1777549842000,-151.0,0.00025868,2]
[421385650,1777549842000,-151.0,0.00025868,2]
[421385645,1777549842000,-151.0,0.00025865,2]
[421385662,1777549842000,-151.0,0.00025868,2]
[421385663,1777549842000,-151.0,0.00025868,2]
[421385664,1777549842000,-151.0,0.00025868,2]
[421385643,1777549842000,-151.0,0.00025865,2]
[421385687,1777549842000,-624.87969989,0.00026483,60]
[421385636,1777549842000,-151.0,0.00025865,2]
[421385684,1777549842000,-328.86,0.00026388,2]
[421385731,1777549842000,-151.0,0.0002669,2]
[421385727,1777549842000,-151.0,0.0002669,2]
[421385725,1777549842000,-151.0,0.0002669,2]
[421385722,1777549842000,-151.0,0.0002669,2]
[421385723,1777549842000,-194.73,0.0002669,2]
[421385728,1777549842000,-151.0,0.0002669,2]
[421385733,1777549842000,-151.0,0.0002669,2]
[421385732,1777549842000,-151.0,0.0002669,2]
[421385735,1777549842000,-151.0,0.0002669,2]
[421385734,1777549842000,-151.42,0.0002669,2]
[421385739,1777549842000,-151.0,0.0002669,2]
[421385736,1777549842000,-151.0,0.0002669,2]
[421385740,1777549842000,-151.0,0.0002669,2]
[421385742,1777549842000,-151.0,0.0002669,2]
[421385741,1777549842000,-151.0,0.0002669,2]
[421385738,1777549842000,-151.0,0.0002669,2]
[421385737,1777549842000,-151.0,0.0002669,2]
[421385743,1777549842000,-151.0,0.0002669,2]
[421385744,1777549842000,-151.0,0.0002669,2]
[421385745,1777549842000,-151.0,0.0002669,2]
[421385751,1777549842000,-151.0,0.0002669,2]
[421385748,1777549842000,-151.0,0.0002669,2]
[421385746,1777549842000,-151.0,0.0002669,2]
[421385747,1777549842000,-151.0,0.0002669,2]
[421385749,1777549842000,-151.0,0.0002669,2]
[421385752,1777549842000,-151.0,0.0002669,2]
[421385688,1777549842000,-624.87969989,0.00026555,60]
[421385721,1777549842000,-151.0,0.0002669,2]
[421385719,1777549842000,-151.78,0.0002669,2]
[421385750,1777549842000,-151.0,0.0002669,2]
[421385730,1777549842000,-151.0,0.0002669,2]
[421385726,1777549842000,-151.0,0.0002669,2]
[421385690,1777549842000,-328.86,0.00026676,7]
[421385692,1777549842000,-151.0,0.00026687,2]
[421385705,1777549842000,-151.0,0.0002669,2]
[421385695,1777549842000,-152.07,0.00026687,2]
[421385693,1777549842000,-151.0,0.00026687,2]
[421385703,1777549842000,-151.0,0.0002669,2]
[421385691,1777549842000,-603.12,0.00026687,2]
[421385700,1777549842000,-500.0,0.00026689,2]
[421385697,1777549842000,-151.0,0.00026687,2]
[421385694,1777549842000,-151.0,0.00026687,2]
[421385696,1777549842000,-151.0,0.00026687,2]
[421385707,1777549842000,-151.0,0.0002669,2]
[421385701,1777549842000,-151.0,0.0002669,2]
[421385713,1777549842000,-151.0,0.0002669,2]
[421385720,1777549842000,-151.0,0.0002669,2]
[421385724,1777549842000,-151.0,0.0002669,2]
[421385714,1777549842000,-151.0,0.0002669,2]
[421385710,1777549842000,-151.0,0.0002669,2]
[421385706,1777549842000,-151.0,0.0002669,2]
[421385708,1777549842000,-151.0,0.0002669,2]
[421385712,1777549842000,-151.0,0.0002669,2]
[421385718,1777549842000,-151.0,0.0002669,2]
[421385709,1777549842000,-151.0,0.0002669,2]
[421385716,1777549842000,-151.0,0.0002669,2]
[421385717,1777549842000,-151.0,0.0002669,2]
[421385715,1777549842000,-151.0,0.0002669,2]
[421385711,1777549842000,-151.0,0.0002669,2]
[421385792,1777549843000,-246.83,0.0002669,2]
[421385791,1777549843000,-151.0,0.0002669,2]
[421385788,1777549843000,-151.0,0.0002669,2]
[421385783,1777549843000,-151.0,0.0002669,2]
[421385779,1777549843000,-151.0,0.0002669,2]
[421385784,1777549843000,-151.0,0.0002669,2]
[421385789,1777549843000,-151.0,0.0002669,2]
[421385781,1777549843000,-151.0,0.0002669,2]
[421385786,1777549843000,-151.0,0.0002669,2]
[421385785,1777549843000,-151.0,0.0002669,2]
[421385796,1777549843000,-151.0,0.0002669,2]
[421385801,1777549843000,-151.0,0.0002669,2]
[421385795,1777549843000,-151.0,0.0002669,2]
[421385797,1777549843000,-151.0,0.0002669,2]
[421385794,1777549843000,-151.0,0.0002669,2]
[421385800,1777549843000,-151.0,0.0002669,2]
[421385798,1777549843000,-151.0,0.0002669,2]
[421385799,1777549843000,-151.0,0.0002669,2]
[421385802,1777549843000,-151.0,0.0002669,2]
[421385804,1777549843000,-624.87969989,0.00026699,60]
[421385807,1777549843000,-328.86,0.00026964,30]
[421385803,1777549843000,-151.0,0.0002669,2]
[421385782,1777549843000,-151.0,0.0002669,2]
[421385809,1777549843000,-162.3498137,0.00027,3]
[421385793,1777549843000,-151.0,0.0002669,2]
[421385787,1777549843000,-151.0,0.0002669,2]
[421385768,1777549843000,-151.0,0.0002669,2]
[421385780,1777549843000,-151.0,0.0002669,2]
[421385805,1777549843000,-624.87969989,0.00026772,60]
[421385753,1777549843000,-151.0,0.0002669,2]
[421385754,1777549843000,-151.0,0.0002669,2]
[421385756,1777549843000,-151.0,0.0002669,2]
[421385766,1777549843000,-151.0,0.0002669,2]
[421385757,1777549843000,-151.0,0.0002669,2]
[421385764,1777549843000,-151.0,0.0002669,2]
[421385763,1777549843000,-151.0,0.0002669,2]
[421385759,1777549843000,-189.18,0.0002669,2]
[421385761,1777549843000,-151.0,0.0002669,2]
[421385760,1777549843000,-151.0,0.0002669,2]
[421385755,1777549843000,-151.0,0.0002669,2]
[421385790,1777549843000,-151.0,0.0002669,2]
[421385762,1777549843000,-151.0,0.0002669,2]
[421385765,1777549843000,-151.0,0.0002669,2]
[421385771,1777549843000,-151.0,0.0002669,2]
[421385778,1777549843000,-151.0,0.0002669,2]
[421385769,1777549843000,-151.0,0.0002669,2]
[421385767,1777549843000,-151.0,0.0002669,2]
[421385770,1777549843000,-151.0,0.0002669,2]
[421385775,1777549843000,-151.0,0.0002669,2]
[421385774,1777549843000,-151.0,0.0002669,2]
[421385772,1777549843000,-151.0,0.0002669,2]
[421385777,1777549843000,-151.0,0.0002669,2]
[421385773,1777549843000,-151.0,0.0002669,2]
[421385776,1777549843000,-151.0,0.0002669,2]
[421385758,1777549843000,-151.0,0.0002669,2]
[421385810,1777549843000,-748.28172148,0.0002705,2]
[421385817,1777549843000,-151.0,0.00027397,2]
[421385808,1777549843000,-1784.84634,0.00027,2]
[421385840,1777549843000,-151.0,0.00027397,2]
[421385844,1777549843000,-151.0,0.00027397,2]
[421385841,1777549843000,-151.0,0.00027397,2]
[421385845,1777549843000,-151.0,0.00027397,2]
[421385843,1777549843000,-151.0,0.00027397,2]
[421385849,1777549843000,-288.675705,0.00027397,2]
[421385859,1777549843000,-151.0,0.00027397,2]
[421385851,1777549843000,-151.0,0.00027397,2]
[421385861,1777549843000,-3427.18,0.00027397,10]
[421385856,1777549843000,-151.0,0.00027397,2]
[421385857,1777549843000,-151.0,0.00027397,2]
[421385853,1777549843000,-151.0,0.00027397,2]
[421385860,1777549843000,-151.0,0.00027397,2]
[421385858,1777549843000,-151.0,0.00027397,2]
[421385855,1777549843000,-151.0,0.00027397,2]
[421385863,1777549843000,-151.0,0.00027397,2]
[421385862,1777549843000,-5350.97,0.00027397,10]
[421385864,1777549843000,-151.0,0.00027397,2]
[421385865,1777549843000,-151.0,0.00027397,2]
[421385866,1777549843000,-4459.14,0.00027397,10]
[421385871,1777549843000,-151.0,0.00027509,2]
[421385806,1777549843000,-603.12,0.00026961,2]
[421385869,1777549843000,-603.12,0.00027509,14]
[421385868,1777549843000,-158.609412,0.00027397,2]
[421385870,1777549843000,-151.0,0.00027509,2]
[421385842,1777549843000,-151.0,0.00027397,2]
[421385839,1777549843000,-151.0,0.00027397,2]
[421385867,1777549843000,-151.0,0.00027397,2]
[421385838,1777549843000,-151.0,0.00027397,2]
[421385835,1777549843000,-151.0,0.00027397,2]
[421385811,1777549843000,-3464.37738314,0.0002705,2]
[421385814,1777549843000,-328.86,0.00027253,2]
[421385822,1777549843000,-151.0,0.00027397,2]
[421385816,1777549843000,-151.0,0.00027397,2]
[421385819,1777549843000,-1500.0,0.00027397,2]
[421385818,1777549843000,-151.0,0.00027397,2]
[421385820,1777549843000,-300.0,0.00027397,2]
[421385815,1777549843000,-4224.21118527,0.0002733,69]
[421385813,1777549843000,-603.12,0.00027235,2]
[421385821,1777549843000,-151.0,0.00027397,2]
[421385824,1777549843000,-151.0,0.00027397,2]
[421385834,1777549843000,-151.0,0.00027397,2]
[421385812,1777549843000,-505.0,0.00027137,2]
[421385827,1777549843000,-151.0,0.00027397,2]
[421385823,1777549843000,-151.0,0.00027397,2]
[421385836,1777549843000,-151.0,0.00027397,2]
[421385828,1777549843000,-151.0,0.00027397,2]
[421385831,1777549843000,-151.0,0.00027397,2]
[421385825,1777549843000,-232.629849,0.00027397,2]
[421385847,1777549843000,-151.0,0.00027397,2]
[421385833,1777549843000,-151.0,0.00027397,2]
[421385829,1777549843000,-151.0,0.00027397,2]
[421385826,1777549843000,-151.0,0.00027397,2]
[421385832,1777549843000,-151.0,0.00027397,2]
[421385830,1777549843000,-151.0,0.00027397,2]
[421385837,1777549843000,-219.582725,0.00027397,2]
[421385898,1777549844000,-151.0,0.00028334,2]
[421385908,1777549844000,-151.0,0.00028334,2]
[421385905,1777549844000,-151.0,0.00028334,2]
[421385899,1777549844000,-151.0,0.00028334,2]
[421385900,1777549844000,-151.0,0.00028334,2]
[421385901,1777549844000,-151.0,0.00028334,2]
[421385904,1777549844000,-151.0,0.00028334,2]
[421385903,1777549844000,-151.0,0.00028334,2]
[421385902,1777549844000,-151.0,0.00028334,2]
[421385919,1777549844000,-151.0,0.00028334,2]
[421385913,1777549844000,-151.0,0.00028334,2]
[421385910,1777549844000,-151.0,0.00028334,2]
[421385909,1777549844000,-151.0,0.00028334,2]
[421385911,1777549844000,-151.0,0.00028334,2]
[421385912,1777549844000,-151.0,0.00028334,2]
[421385916,1777549844000,-151.0,0.00028334,2]
[421385914,1777549844000,-151.0,0.00028334,2]
[421385915,1777549844000,-151.0,0.00028334,2]
[421385917,1777549844000,-151.0,0.00028334,2]
[421385918,1777549844000,-151.0,0.00028334,2]
[421385906,1777549844000,-151.0,0.00028334,2]
[421385907,1777549844000,-151.0,0.00028334,2]
[421385897,1777549844000,-151.0,0.00028334,2]
[421385881,1777549844000,-162.87581509,0.00027671,2]
[421385895,1777549844000,-151.0,0.00028334,2]
[421385875,1777549844000,-151.0,0.00027512,2]
[421385872,1777549844000,-151.0,0.00027509,2]
[421385874,1777549844000,-151.0,0.00027512,2]
[421385873,1777549844000,-151.0,0.00027512,2]
[421385877,1777549844000,-177.68270737,0.00027534,2]
[421385876,1777549844000,-151.0,0.00027512,2]
[421385885,1777549844000,-603.13381147,0.00028057,14]
[421385878,1777549844000,-162.87581509,0.00027534,2]
[421385879,1777549844000,-328.86,0.00027541,7]
[421385886,1777549844000,-328.86,0.00028118,2]
[421385896,1777549844000,-151.0,0.00028334,2]
[421385882,1777549844000,-161.11,0.00027671,2]
[421385880,1777549844000,-447.88158663,0.00027586,2]
[421385884,1777549844000,-328.86,0.0002783,30]
[421385888,1777549844000,-151.0,0.00028331,2]
[421385887,1777549844000,-151.0,0.00028331,2]
[421385890,1777549844000,-151.0,0.00028331,2]
[421385893,1777549844000,-152.62,0.00028331,2]
[421385891,1777549844000,-151.0,0.00028331,2]
[421385894,1777549844000,-151.0,0.00028331,2]
[421385889,1777549844000,-151.0,0.00028331,2]
[421385892,1777549844000,-151.0,0.00028331,2]
[421385883,1777549844000,-603.12,0.00027783,14]
[421385922,1777549844000,-219.24,0.0002863,2]
[421385939,1777549844000,-1039.58695078,0.00028863,5]
[421385923,1777549844000,-219.24,0.00028661,7]
[421385945,1777549844000,-3939.52,0.000289,2]
[421385952,1777549844000,-219.24,0.00029042,7]
[421385951,1777549844000,-219.24,0.0002901,2]
[421385947,1777549844000,-219.24,0.00028947,7]
[421385954,1777549844000,-202.37,0.000291,7]
[421385958,1777549844000,-219.24,0.00029137,7]
[421385956,1777549844000,-34303.65,0.000291,7]
[421385959,1777549844000,-396.77,0.00029152,2]
[421385957,1777549844000,-219.24,0.00029105,2]
[421385960,1777549844000,-151.0,0.00029153,2]
[421385950,1777549844000,-9277.0,0.00029,2]
[421385963,1777549844000,-151.0,0.00029153,2]
[421385961,1777549844000,-151.0,0.00029153,2]
[421385964,1777549844000,-151.0,0.00029153,2]
[421385965,1777549844000,-151.0,0.00029153,2]
[421385967,1777549844000,-151.0,0.00029156,2]
[421385968,1777549844000,-151.0,0.00029156,2]
[421385970,1777549844000,-151.0,0.00029156,2]
[421385971,1777549844000,-151.0,0.00029156,2]
[421385966,1777549844000,-151.0,0.00029156,2]
[421385969,1777549844000,-151.0,0.00029156,2]
[421385921,1777549844000,-328.86,0.00028406,7]
[421385962,1777549844000,-151.0,0.00029153,2]
[421385949,1777549844000,-328.86,0.00028983,2]
[421385955,1777549844000,-155.36,0.000291,7]
[421385948,1777549844000,-219.24,0.00028979,30]
[421385924,1777549844000,-219.24,0.00028693,30]
[421385946,1777549844000,-219.24,0.00028915,2]
[421385920,1777549844000,-151.0,0.00028334,2]
[421385929,1777549844000,-315.12000001,0.000288,7]
[421385926,1777549844000,-219.24,0.00028725,2]
[421385927,1777549844000,-219.24,0.00028756,7]
[421385925,1777549844000,-328.86,0.00028695,30]
[421385931,1777549844000,-219.24,0.00028852,7]
[421385941,1777549844000,-1067.34642276,0.00028863,5]
[421385930,1777549844000,-219.24,0.0002882,2]
[421385935,1777549844000,-1070.79439421,0.00028863,5]
[421385928,1777549844000,-219.24,0.00028788,30]
[421385944,1777549844000,-219.24,0.00028883,30]
[421385932,1777549844000,-1048.44697682,0.00028863,5]
[421385936,1777549844000,-1090.0190685,0.00028863,5]
[421385937,1777549844000,-1076.581844,0.00028863,5]
[421385940,1777549844000,-1092.40554377,0.00028863,5]
[421385934,1777549844000,-1049.97300273,0.00028863,5]
[421385938,1777549844000,-1012.38599188,0.00028863,5]
[421385943,1777549844000,-1345.94173911,0.00028863,5]
[421385942,1777549844000,-1046.4835003,0.00028863,5]
[421385933,1777549844000,-1127.22842822,0.00028863,5]
[421385953,1777549844000,-219.24,0.00029074,30]
[421386007,1777549845000,-478.34,0.00030796,2]
[421386008,1777549845000,-568.61,0.00030796,2]
[421386002,1777549845000,-256.0842149,0.00030011,7]
[421386009,1777549845000,-183.55,0.00030797,2]
[421386011,1777549845000,-568.61,0.00030797,2]
[421385996,1777549845000,-478.34,0.00029975,2]
[421386004,1777549845000,-15941.0,0.00030137,120]
[421386013,1777549845000,-478.34,0.00030797,2]
[421386003,1777549845000,-14048.11975919,0.00030137,120]
[421386005,1777549845000,-173.17,0.00030411,120]
[421386006,1777549845000,-392.97,0.00030796,2]
[421386010,1777549845000,-638.83,0.00030797,2]
[421386023,1777549845000,-392.96,0.00030797,2]
[421386014,1777549845000,-568.61,0.00030797,2]
[421386016,1777549845000,-478.34,0.00030797,2]
[421386015,1777549845000,-478.34,0.00030797,2]
[421386017,1777549845000,-570.86,0.00030797,2]
[421386020,1777549845000,-570.86,0.00030797,2]
[421386019,1777549845000,-638.83,0.00030797,2]
[421386018,1777549845000,-638.83,0.00030797,2]
[421386025,1777549845000,-392.96,0.00030799,2]
[421386021,1777549845000,-476.04,0.00030797,2]
[421386024,1777549845000,-638.83,0.00030799,2]
[421385999,1777549845000,-478.34,0.00029978,2]
[421386012,1777549845000,-183.55,0.00030797,2]
[421385998,1777549845000,-183.55,0.00029978,2]
[421385975,1777549845000,-151.0,0.00029156,2]
[421385997,1777549845000,-392.96,0.00029975,2]
[421385972,1777549845000,-268.83,0.00029156,2]
[421385973,1777549845000,-151.0,0.00029156,2]
[421386022,1777549845000,-638.83,0.00030797,2]
[421385974,1777549845000,-151.0,0.00029156,2]
[421385978,1777549845000,-151.0,0.00029156,2]
[421385980,1777549845000,-151.0,0.00029156,2]
[421385977,1777549845000,-151.0,0.00029156,2]
[421385988,1777549845000,-500.0,0.00029539,9]
[421385983,1777549845000,-219.24,0.00029201,2]
[421385981,1777549845000,-219.24,0.00029169,30]
[421385979,1777549845000,-151.0,0.00029156,2]
[421386001,1777549845000,-162.3498137,0.0003,7]
[421385982,1777549845000,-150.0,0.0002918,30]
[421385987,1777549845000,-150.0,0.00029534,2]
[421385984,1777549845000,-219.42,0.00029232,7]
[421385985,1777549845000,-219.25,0.00029232,7]
[421385989,1777549845000,-500.0,0.00029539,9]
[421385992,1777549845000,-500.0,0.00029539,9]
[421385993,1777549845000,-500.0,0.00029539,9]
[421385990,1777549845000,-500.0,0.00029539,9]
[421385991,1777549845000,-500.0,0.00029539,9]
[421385994,1777549845000,-431.28,0.00029539,9]
[421385995,1777549845000,-638.83,0.00029974,2]
[421386000,1777549845000,-638.83,0.00029983,2]
[421385986,1777549845000,-328.86,0.00029271,7]
[421386026,1777549845000,-638.83,0.00030799,2]
[421385976,1777549845000,-151.0,0.00029156,2]
[421386029,1777549845000,-183.55,0.00030799,2]
[421386058,1777549845000,-638.83,0.00030799,2]
[421386059,1777549845000,-570.86,0.00030799,2]
[421386060,1777549845000,-568.61,0.00030805,2]
[421386063,1777549845000,-150.0,0.00031011,2]
[421386064,1777549845000,-156.0,0.00031171,30]
[421386061,1777549845000,-570.86,0.00030805,2]
[421386066,1777549845000,-186.0,0.00031171,30]
[421386062,1777549845000,-570.86,0.00030805,2]
[421386065,1777549845000,-155.0,0.00031171,30]
[421386067,1777549845000,-34303.65,0.000312,7]
[421386068,1777549845000,-151.0,0.000312,7]
[421386069,1777549845000,-151.0,0.000312,7]
[421386070,1777549845000,-163.673735,0.000312,7]
[421386071,1777549845000,-151.0,0.000312,7]
[421386072,1777549845000,-151.0,0.000312,7]